fUSD/lending_fUSD_20260217
["ID","MTS","AMOUNT","RATE_DAILY","PERIOD"]
[405844505,1771356650795,-500.0,0.00013698,2]
[405844506,1771356650807,-500.0,0.00013698,2]
[405844507,1771356650817,-500.0,0.00013698,2]
[405844508,1771356650826,-500.0,0.00013698,2]
[405844509,1771356650836,-500.0,0.00013698,2]
[405844510,1771356650846,-500.0,0.00013698,2]
[405844511,1771356650857,-500.0,0.00013698,2]
[405844512,1771356650866,-500.0,0.00013698,2]
[405844513,1771356650875,-1159.85,0.00013698,2]
[405844514,1771356650885,-500.0,0.00013698,2]
[405844515,1771356650895,-1159.85,0.00013698,2]
[405844516,1771356650906,-297.0,0.00013698,2]
[405844517,1771356650915,-1159.85,0.00013698,2]
[405844518,1771356650925,-1159.85,0.00013698,2]
[405844519,1771356650935,-1159.85,0.00013698,2]
[405844520,1771356650944,-1159.85,0.00013698,2]
[405844521,1771356650954,-1159.85,0.00013698,2]
[405844522,1771356650970,-1159.85,0.00013698,2]
[405844523,1771356650988,-1159.85,0.00013698,2]
[405844524,1771356651001,-1159.85,0.00013698,2]
[405844525,1771356651017,-1159.85,0.00013698,2]
[405844526,1771356651031,-1159.85,0.00013698,2]
[405844527,1771356651049,-1159.85,0.00013698,2]
[405844528,1771356651063,-1159.85,0.00013698,2]
[405844529,1771356651077,-1159.85,0.00013698,2]
[405844530,1771356651092,-1159.85,0.00013698,2]
[405844531,1771356651107,-1159.85,0.00013698,2]
[405844532,1771356651124,-1159.85,0.00013698,2]
[405844533,1771356651140,-1159.85,0.00013698,2]
[405844534,1771356651156,-1159.85,0.00013698,2]
[405844535,1771356651170,-1159.85,0.00013698,2]
[405844536,1771356651185,-1159.85,0.00013698,2]
[405844537,1771356651200,-1159.85,0.00013698,2]
[405844538,1771356651216,-1159.91,0.00013698,2]
[405844539,1771356651230,-500.0,0.00013698,2]
[405844540,1771356651242,-500.0,0.00013698,2]
[405844541,1771356651253,-500.0,0.00013698,2]
[405844542,1771356651273,-500.0,0.00013698,2]
[405844543,1771356651293,-500.0,0.00013698,2]
[405844544,1771356651311,-494.24526323,0.00013698,2]
[405844545,1771356651333,-500.0,0.00013698,2]
[405844546,1771356651353,-500.0,0.00013698,2]
[405844547,1771356651365,-500.0,0.00013698,2]
[405844548,1771356651380,-191.17661539,0.00013698,2]
[405844549,1771356651395,-500.0,0.00013698,2]
[405844550,1771356651411,-500.0,0.00013698,2]
[405844551,1771356651427,-500.0,0.00013698,2]
[405844552,1771356651442,-500.0,0.00013698,2]
[405844553,1771356651456,-500.0,0.00013698,2]
[405844554,1771356651471,-500.0,0.00013698,2]
[405844555,1771356651486,-500.0,0.00013698,2]
[405844556,1771356651503,-500.0,0.00013698,2]
[405844557,1771356651518,-500.0,0.00013698,2]
[405844558,1771356651539,-500.0,0.00013698,2]
[405844559,1771356651554,-500.0,0.00013698,2]
[405844560,1771356651568,-307.56,0.00013698,2]
[405844561,1771356651582,-500.0,0.00013698,2]
[405844562,1771356651596,-500.0,0.00013698,2]
[405844563,1771356651610,-500.0,0.00013698,2]
[405844564,1771356651624,-505.58518338,0.00013698,2]
[405844565,1771356651638,-500.0,0.00013698,2]
[405844566,1771356651652,-500.0,0.00013698,2]
[405844567,1771356651665,-500.0,0.00013698,2]
[405844568,1771356651679,-500.0,0.00013698,2]
[405844569,1771356651693,-474.03942024,0.00013698,2]
[405844570,1771356651706,-500.0,0.00013698,2]
[405844571,1771356651719,-3936.54,0.00013699,2]
[405844572,1771356651733,-4479.21,0.00013699,2]
[405844573,1771356651746,-200.0,0.00013699,2]
[405844574,1771356651758,-712.99,0.00013699,2]
[405844575,1771356651770,-162.238527,0.00013699,2]
[405844576,1771356651783,-242.009051,0.00013699,2]
[405844577,1771356651796,-242.009051,0.00013699,2]
[405844578,1771356651811,-242.009051,0.00013699,2]
[405844579,1771356651824,-242.009051,0.00013699,2]
[405844580,1771356651838,-500.0,0.00013699,2]
[405844581,1771356651851,-151.02878078,0.00013699,2]
[405844582,1771356651864,-406.7,0.000137,2]
[405844583,1771356651878,-406.7,0.000137,2]
[405844584,1771356651890,-406.7,0.000137,2]
[405844585,1771356651903,-406.7,0.000137,2]
[405844586,1771356651916,-406.7,0.000137,2]
[405844587,1771356651929,-174.5920753,0.00013756,2]
[405844588,1771356651942,-250.0,0.00013756,2]
[405844589,1771356651954,-250.0,0.00013756,2]
[405844590,1771356651967,-250.0,0.00013756,2]
[405844591,1771356651980,-250.0,0.00013756,2]
[405844592,1771356651993,-184.99591854,0.00013756,2]
[405844593,1771356652006,-250.0,0.00013756,2]
[405844594,1771356652018,-250.0,0.00013756,2]
[405844595,1771356652031,-250.0,0.00013756,2]
[405844596,1771356652045,-250.0,0.00013756,2]
[405844597,1771356652058,-250.0,0.00013756,2]
[405844598,1771356652071,-250.0,0.00013756,2]
[405844599,1771356652083,-250.0,0.00013756,2]
[405844600,1771356652096,-250.0,0.00013756,2]
[405844601,1771356652109,-250.0,0.00013756,2]
[405844602,1771356652121,-151.0,0.00013756,2]
[405844603,1771356652134,-250.0,0.00013756,2]
[405844604,1771356652147,-250.0,0.00013756,2]
[405844605,1771356652160,-250.0,0.00013756,2]
[405844606,1771356652172,-250.0,0.00013756,2]
[405844607,1771356652184,-250.0,0.00013756,2]
[405844608,1771356652198,-200.0,0.00013756,2]
[405844609,1771356652211,-250.0,0.00013756,2]
[405844610,1771356652224,-151.0,0.00013756,2]
[405844611,1771356652236,-250.0,0.00013756,2]
[405844612,1771356652249,-156.587,0.00013756,2]
[405844613,1771356652261,-250.0,0.00013756,2]
[405844614,1771356652274,-162.380719,0.00013756,2]
[405844615,1771356652287,-250.0,0.00013756,2]
[405844616,1771356652300,-159.19814613,0.00013756,2]
[405844617,1771356652313,-250.0,0.00013756,2]
[405844618,1771356652325,-250.0,0.00013756,2]
[405844619,1771356652342,-250.0,0.00013756,2]
[405844620,1771356652354,-250.0,0.00013756,2]
[405844621,1771356652367,-250.0,0.00013756,2]
[405844622,1771356652381,-174.61919141,0.00013756,2]
[405844623,1771356652393,-250.0,0.00013756,2]
[405844624,1771356652407,-250.0,0.00013756,2]
[405844625,1771356652419,-3000.0,0.00013756,2]
[405844626,1771356652433,-250.0,0.00013756,2]
[405844627,1771356652445,-3000.0,0.00013756,2]
[405844628,1771356652458,-250.0,0.00013756,2]
[405844629,1771356652471,-250.0,0.00013756,2]
[405844630,1771356652483,-743.50770149,0.00013756,2]
[405844631,1771356652496,-3000.0,0.00013756,2]
[405844632,1771356652509,-250.0,0.00013756,2]
[405844633,1771356652521,-250.0,0.00013756,2]
[405844634,1771356652535,-3000.0,0.00013756,2]
[405844635,1771356652548,-250.0,0.00013756,2]
[405844636,1771356652561,-250.0,0.00013756,2]
[405844637,1771356652573,-3000.0,0.00013756,2]
[405844638,1771356652587,-250.0,0.00013756,2]
[405844639,1771356652600,-250.0,0.00013756,2]
[405844640,1771356652613,-3000.0,0.00013756,2]
[405844641,1771356652626,-250.0,0.00013756,2]
[405844642,1771356652638,-250.0,0.00013756,2]
[405844643,1771356652650,-250.0,0.00013756,2]
[405844644,1771356652663,-3000.0,0.00013756,2]
[405844645,1771356652675,-250.0,0.00013756,2]
[405844646,1771356652687,-250.0,0.00013756,2]
[405844647,1771356652700,-2570.81608438,0.00013756,2]
[405844648,1771356652712,-250.0,0.00013756,2]
[405844649,1771356652724,-250.0,0.00013756,2]
[405844650,1771356652737,-250.0,0.00013756,2]
[405844651,1771356652750,-250.0,0.00013756,2]
[405844652,1771356652762,-250.0,0.00013756,2]
[405844653,1771356652775,-250.0,0.00013756,2]
[405844654,1771356652787,-250.0,0.00013756,2]
[405844655,1771356652800,-500.0,0.00013756,2]
[405844656,1771356652812,-721.12765535,0.00013756,2]
[405844657,1771356652825,-250.0,0.00013756,2]
[405844658,1771356652838,-500.0,0.00013756,2]
[405844659,1771356652850,-250.0,0.00013756,2]
[405844660,1771356652861,-500.0,0.00013756,2]
[405844661,1771356652874,-431.2849758,0.00013756,2]
[405844662,1771356652886,-250.0,0.00013756,2]
[405844663,1771356652898,-500.0,0.00013756,2]
[405844664,1771356652911,-250.0,0.00013756,2]
[405844665,1771356652923,-500.0,0.00013756,2]
[405844666,1771356652935,-250.0,0.00013756,2]
[405844667,1771356652947,-500.0,0.00013756,2]
[405844668,1771356652960,-250.0,0.00013756,2]
[405844669,1771356652972,-500.0,0.00013756,2]
[405844670,1771356652984,-250.0,0.00013756,2]
[405844671,1771356652996,-500.0,0.00013756,2]
[405844672,1771356653008,-500.0,0.00013756,2]
[405844673,1771356653021,-250.0,0.00013756,2]
[405844674,1771356653033,-500.0,0.00013756,2]
[405844675,1771356653046,-250.0,0.00013756,2]
[405844676,1771356653059,-500.0,0.00013756,2]
[405844677,1771356653073,-299.40346672,0.00013756,2]
[405844678,1771356653085,-500.0,0.00013756,2]
[405844679,1771356653099,-500.0,0.00013756,2]
[405844680,1771356653112,-500.0,0.00013756,2]
[405844681,1771356653123,-151.0,0.00013756,2]
[405844682,1771356653132,-151.0,0.00013756,2]
[405844683,1771356653141,-693.3919763,0.00013756,2]
[405844684,1771356653151,-151.0,0.00013756,2]
[405844685,1771356653160,-151.0,0.00013756,2]
[405844686,1771356653170,-151.0,0.00013756,2]
[405844687,1771356653179,-500.0,0.00013756,2]
[405844688,1771356653188,-500.0,0.00013756,2]
[405844689,1771356653198,-151.0,0.00013756,2]
[405844690,1771356653207,-500.0,0.00013756,2]
[405844691,1771356653216,-151.0,0.00013756,2]
[405844692,1771356653226,-151.0,0.00013756,2]
[405844693,1771356653236,-500.0,0.00013756,2]
[405844694,1771356653245,-151.0,0.00013756,2]
[405844695,1771356653684,-500.0,0.00013756,2]
[405844696,1771356653708,-151.0,0.00013756,2]
[405844697,1771356653740,-500.0,0.00013756,2]
[405844698,1771356653750,-151.0,0.00013756,2]
[405844699,1771356653759,-277.35679052,0.00013756,2]
[405844700,1771356653768,-151.0,0.00013811,2]
[405844701,1771356653778,-719.04747942,0.00013811,2]
[405844702,1771356653787,-503.8182606,0.00013816,2]
[405844703,1771356653797,-2000.0,0.00013816,2]
[405844704,1771356653808,-2000.0,0.00013816,2]
[405844705,1771356653817,-2000.0,0.00013816,2]
[405844706,1771356653826,-2000.0,0.00013816,2]
[405844707,1771356653837,-2000.0,0.00013816,2]
[405844708,1771356653846,-2000.0,0.00013816,2]
[405844709,1771356653855,-2000.0,0.00013816,2]
[405844710,1771356653864,-2000.0,0.00013816,2]
[405844711,1771356653874,-200.0,0.00013836,2]
[405844712,1771356653883,-339.62,0.00013838,2]
[405844713,1771356653892,-151.0,0.00013866,2]
[405844714,1771356653902,-745.65223616,0.00013866,2]
[405844715,1771356653911,-500.0,0.00013873,2]
[405844716,1771356653921,-500.0,0.00013873,2]
[405844717,1771356653931,-500.0,0.00013873,2]
[405844718,1771356653940,-500.0,0.00013873,2]
[405844719,1771356653949,-500.0,0.00013873,2]
[405844720,1771356653958,-500.0,0.00013873,2]
[405844721,1771356653968,-500.0,0.00013873,2]
[405844722,1771356653977,-500.0,0.00013873,2]
[405844723,1771356653987,-500.0,0.00013873,2]
[405844724,1771356653996,-500.0,0.00013873,2]
[405844725,1771356654005,-161.87499248,0.00013873,2]
[405844726,1771356654014,-500.0,0.00013873,2]
[405844727,1771356654024,-500.0,0.00013873,2]
[405844728,1771356654033,-525.66819458,0.00013873,2]
[405844729,1771356654042,-161.95965132,0.00013873,2]
[405844730,1771356654053,-561.11210647,0.00013873,2]
[405844731,1771356654062,-500.0,0.00013873,2]
[405844732,1771356654072,-500.0,0.00013873,2]
[405844733,1771356654082,-500.0,0.00013873,2]
[405844734,1771356654092,-500.0,0.00013873,2]
[405844735,1771356654102,-163.87964352,0.00013873,2]
[405844736,1771356654112,-500.0,0.00013873,2]
[405844737,1771356654121,-500.0,0.00013873,2]
[405844738,1771356654131,-500.0,0.00013873,2]
[405844739,1771356654141,-523.64780308,0.00013873,2]
[405844740,1771356654150,-160.44342054,0.00013873,2]
[405844741,1771356654160,-162.40112722,0.00013873,2]
[405844742,1771356654170,-500.29634492,0.00013873,2]
[405844743,1771356654179,-500.0,0.00013873,2]
[405844744,1771356654189,-500.0,0.00013873,2]
[405844745,1771356654198,-335.00019172,0.00013873,2]
[405844746,1771356654207,-500.0,0.00013873,2]
[405844747,1771356654218,-505.14943602,0.00013873,2]
[405844748,1771356654228,-500.0,0.00013873,2]
[405844749,1771356654238,-500.0,0.00013873,2]
[405844750,1771356654248,-500.0,0.00013873,2]
[405844751,1771356654257,-500.0,0.00013873,2]
[405844752,1771356654267,-377.76526068,0.00013873,2]
[405844753,1771356654276,-501.14207764,0.00013873,2]
[405844754,1771356654285,-500.0,0.00013873,2]
[405844755,1771356654294,-500.0,0.00013873,2]
[405844756,1771356654303,-186.11515271,0.00013873,2]
[405844757,1771356654313,-503.17452108,0.00013873,2]
[405844758,1771356654323,-500.0,0.00013873,2]
[405844759,1771356654332,-514.27467488,0.00013873,2]
[405844760,1771356654343,-500.93096914,0.00013873,2]
[405844761,1771356654353,-161.02829907,0.00013873,2]
[405844762,1771356654362,-500.0,0.00013873,2]
[405844763,1771356654372,-170.20434449,0.00013873,2]
[405844764,1771356654382,-500.0,0.00013873,2]
[405844765,1771356654392,-500.0,0.00013873,2]
[405844766,1771356654402,-559.34470409,0.00013873,2]
[405844767,1771356654413,-550.905089,0.00013873,2]
[405844768,1771356654423,-500.0,0.00013873,2]
[405844769,1771356654432,-500.0,0.00013873,2]
[405844770,1771356654441,-500.0,0.00013873,2]
[405844771,1771356654451,-500.0,0.00013873,2]
[405844772,1771356654460,-501.43225284,0.00013873,2]
[405844773,1771356654470,-597.93872342,0.00013873,2]
[405844774,1771356654479,-285.23122629,0.00013873,2]
[405844775,1771356654489,-500.0,0.00013873,2]
[405844776,1771356654498,-8109.8437911,0.00013904,2]
[405844777,1771356654508,-151.0,0.00013921,2]
[405844778,1771356654518,-773.2413689,0.00013921,2]
[405844779,1771356654527,-5758.0,0.00013969,2]
[405844780,1771356654536,-500.0,0.00013973,2]
[405844781,1771356654546,-1000.0,0.00013973,2]
[405844782,1771356654555,-151.0,0.00013976,2]
[405844783,1771356654564,-801.85129955,0.00013976,2]
[405844784,1771356654573,-1500.0,0.00014,2]
[405844785,1771356654583,-2000.0,0.00014,2]
[405844786,1771356654592,-151.0,0.00014031,2]
[405844787,1771356654601,-831.51979763,0.00014031,2]
[405844788,1771356654610,-151.0,0.00014086,2]
[405844789,1771356654620,-862.28603014,0.00014086,2]
[405844790,1771356654630,-5115.82431981,0.00014119,2]
[405844791,1771356654639,-382.04,0.00014131,2]
[405844792,1771356654649,-151.0,0.00014141,2]
[405844793,1771356654658,-894.19061326,0.00014141,2]
[405844794,1771356654668,-215.37,0.00014142,2]
[405844795,1771356654677,-199.14,0.00014181,2]
[405844796,1771356654686,-151.0,0.00014196,2]
[405844797,1771356654695,-927.27566595,0.00014196,2]
[405844798,1771356654704,-500.0,0.00014247,2]
[405844799,1771356654713,-151.0,0.00014251,2]
[405844800,1771356654723,-961.58486559,0.00014251,2]
[405844801,1771356654732,-382.04,0.00014263,2]
[405844802,1771356654741,-199.14,0.00014287,2]
[405844803,1771356654750,-200.0,0.00014304,2]
[405844804,1771356654759,-181.08010149,0.00014304,2]
[405844805,1771356654768,-771.01748645,0.00014304,2]
[405844806,1771356654777,-287.61899177,0.00014304,2]
[405844807,1771356654786,-151.0,0.00014306,2]
[405844808,1771356654796,-997.16350561,0.00014306,2]
[405844809,1771356654806,-200.0,0.00014312,2]
[405844810,1771356654815,-151.0,0.00014361,2]
[405844811,1771356654825,-151.0,0.00014364,2]
[405844812,1771356654834,-151.0,0.00014364,2]
[405844813,1771356654844,-242.009051,0.00014364,2]
[405844814,1771356654854,-242.009051,0.00014364,2]
[405844815,1771356654863,-242.009051,0.00014364,2]
[405844816,1771356654873,-242.009051,0.00014364,2]
[405844817,1771356654883,-2500.0,0.00014364,2]
[405844818,1771356654895,-691.88472966,0.00014364,2]
[405844819,1771356654905,-2500.0,0.00014364,2]
[405844820,1771356654916,-2500.0,0.00014364,2]
[405844821,1771356654927,-1464.93718194,0.00014364,2]
[405844822,1771356654936,-1506.4295813,0.00014364,2]
[405844823,1771356654948,-2238.87048767,0.00014364,2]
[405844824,1771356654958,-2500.0,0.00014364,2]
[405844825,1771356654968,-339.62,0.0001437,2]
[405844826,1771356654978,-4479.21,0.00014384,2]
[405844827,1771356654988,-200.0,0.00014384,2]
[405844828,1771356655000,-10349.13153648,0.0001439,2]
[405844829,1771356655010,-382.04,0.00014394,2]
[405844830,1771356655021,-199.14,0.00014394,2]
[405844831,1771356655031,-151.0,0.00014416,2]
[405844832,1771356655041,-1000.0,0.00014421,2]
[405844833,1771356655051,-1000.0,0.00014421,2]
[405844834,1771356655061,-1000.0,0.00014421,2]
[405844835,1771356655070,-1000.0,0.00014421,2]
[405844836,1771356655080,-1000.0,0.00014421,2]
[405844837,1771356655089,-504.09468333,0.00014421,2]
[405844838,1771356655098,-501.86536618,0.00014421,2]
[405844839,1771356655107,-1000.0,0.00014421,2]
[405844840,1771356655117,-1009.85751715,0.00014421,2]
[405844841,1771356655126,-502.68727614,0.00014421,2]
[405844842,1771356655135,-1000.0,0.00014421,2]
[405844843,1771356655146,-1000.0,0.00014421,2]
[405844844,1771356655156,-1000.0,0.00014421,2]
[405844845,1771356655166,-1000.0,0.00014421,2]
[405844846,1771356655176,-504.64635869,0.00014421,2]
[405844847,1771356655186,-1000.0,0.00014421,2]
[405844848,1771356655197,-1000.0,0.00014421,2]
[405844849,1771356655209,-1000.0,0.00014421,2]
[405844850,1771356655220,-1002.86775924,0.00014421,2]
[405844851,1771356655230,-502.22718587,0.00014421,2]
[405844852,1771356655240,-1001.35605949,0.00014421,2]
[405844853,1771356655251,-1000.0,0.00014421,2]
[405844854,1771356655262,-1009.6821238,0.00014421,2]
[405844855,1771356655273,-565.44208777,0.00014421,2]
[405844856,1771356655282,-1000.0,0.00014421,2]
[405844857,1771356655291,-1000.0,0.00014421,2]
[405844858,1771356655300,-502.80271569,0.00014421,2]
[405844859,1771356655310,-1000.0,0.00014421,2]
[405844860,1771356655319,-1000.0,0.00014421,2]
[405844861,1771356655328,-1000.0,0.00014421,2]
[405844862,1771356655337,-1000.0,0.00014421,2]
[405844863,1771356655348,-1000.0,0.00014421,2]
[405844864,1771356655357,-1000.0,0.00014421,2]
[405844865,1771356655367,-1000.0,0.00014421,2]
[405844866,1771356655376,-151.0,0.00014471,2]
[405844867,1771356655388,-1809.5507438,0.00014472,2]
[405844868,1771356655399,-3994.0,0.000145,2]
[405844869,1771356655408,-500.0,0.00014521,2]
[405844870,1771356655420,-151.0,0.00014526,2]
[405844871,1771356655430,-153.934786,0.00014598,2]
[405844872,1771356655440,-206.826734,0.00014598,2]
[405844873,1771356655450,-193.599369,0.0001463,7]
[405844874,1771356655459,-2628.5807203,0.00014747,2]
[405844875,1771356655469,-3328.9925445,0.00014748,2]
[405844876,1771356655479,-1573.195363,0.00014773,2]
[405844877,1771356655488,-1573.195363,0.00014773,2]
[405844878,1771356655498,-1573.195363,0.00014773,2]
[405844879,1771356655507,-1573.195363,0.00014773,2]
[405844880,1771356655516,-222.568912,0.00014773,2]
[405844881,1771356655526,-222.568912,0.00014773,2]
[405844882,1771356655536,-222.568912,0.00014773,2]
[405844883,1771356655546,-222.568912,0.00014773,2]
[405844884,1771356655556,-156.156714,0.00014773,2]
[405844885,1771356655565,-530514.9364224,0.00014773,2]
[405844886,1771356655576,-15814.0,0.00014789,2]
[405844887,1771356655586,-594.05284132,0.00014795,2]
[405844888,1771356655595,-187.78006525,0.00014852,2]
[405844889,1771356655604,-799.54513345,0.00014852,2]
[405844890,1771356655613,-298.26089446,0.00014852,2]
[405844891,1771356655622,-176.05451458,0.000149,2]
[405844892,1771356655632,-176.05451457,0.000149,2]
[405844893,1771356655642,-176.05451457,0.000149,2]
[405844894,1771356655651,-325645.0300729,0.00014901,2]
[405844895,1771356655660,-3000.0,0.00014912,2]
[405844896,1771356655671,-2453.91707801,0.00014912,2]
[405844897,1771356655682,-1360.79622624,0.00014912,2]
[405844898,1771356655692,-3000.0,0.00014912,2]
[405844899,1771356655702,-200.0,0.00014932,2]
[405844900,1771356655712,-1500.0,0.00014968,2]
[405844901,1771356655723,-1000.0,0.00014968,2]
[405844902,1771356655732,-1500.0,0.00014968,2]
[405844903,1771356655741,-1500.0,0.00014968,2]
[405844904,1771356655752,-1500.0,0.00014968,2]
[405844905,1771356655763,-504.47861685,0.00014968,2]
[405844906,1771356655773,-1000.0,0.00014968,2]
[405844907,1771356655783,-1500.0,0.00014968,2]
[405844908,1771356655795,-395.07222913,0.00014968,2]
[405844909,1771356655806,-1097.87159044,0.00014968,2]
[405844910,1771356655815,-501.69367829,0.00014968,2]
[405844911,1771356655826,-1500.0,0.00014968,2]
[405844912,1771356655835,-1597.03636758,0.00014968,2]
[405844913,1771356655850,-715.83370402,0.00014968,2]
[405844914,1771356655859,-1500.0,0.00014968,2]
[405844915,1771356655869,-1512.37454404,0.00014968,2]
[405844916,1771356655878,-1500.0,0.00014968,2]
[405844917,1771356655888,-1501.26419244,0.00014968,2]
[405844918,1771356655897,-803.51620924,0.00014968,2]
[405844919,1771356655907,-1500.0,0.00014968,2]
[405844920,1771356655916,-1500.0,0.00014968,2]
[405844921,1771356655925,-1500.0,0.00014968,2]
[405844922,1771356655934,-505.49608217,0.00014968,2]
[405844923,1771356655943,-250.0,0.00015,2]
[405844924,1771356655953,-2055.50045313,0.00015,2]
[405844925,1771356655963,-8002.23365242,0.00015,2]
[405844926,1771356655971,-151.76907395,0.00015,2]
[405844927,1771356655980,-4427.0,0.00015001,2]
[405844928,1771356655989,-4479.21,0.00015068,2]
[405844929,1771356655999,-900.0,0.00015068,2]
[405844930,1771356656008,-445.585732,0.00015068,2]
[405844931,1771356656017,-445.585732,0.00015068,2]
[405844932,1771356656027,-445.585732,0.00015068,2]
[405844933,1771356656036,-445.585732,0.00015068,2]
[405844934,1771356656045,-445.585732,0.00015068,2]
[405844935,1771356656054,-445.585732,0.00015068,2]
[405844936,1771356656064,-445.585732,0.00015068,2]
[405844937,1771356656074,-445.585732,0.00015068,2]
[405844938,1771356656083,-445.585732,0.00015068,2]
[405844939,1771356656094,-445.585732,0.00015068,2]
[405844940,1771356656104,-445.585732,0.00015068,2]
[405844941,1771356656114,-445.585732,0.00015068,2]
[405844942,1771356656124,-1517.64,0.000153,2]
[405844943,1771356656134,-173.355935,0.00015346,7]
[405844944,1771356656146,-1000.0,0.00015375,2]
[405844945,1771356656155,-194.72792766,0.000154,2]
[405844946,1771356656166,-829.12830338,0.000154,2]
[405844947,1771356656177,-309.29654756,0.000154,2]
[405844948,1771356656188,-509.61038486,0.000154,2]
[405844949,1771356656198,-1000.0,0.00015419,2]
[405844950,1771356656209,-189.18339057,0.00015448,2]
[405844951,1771356656218,-3500.0,0.0001546,2]
[405844952,1771356656229,-3500.0,0.0001546,2]
[405844953,1771356656240,-376.0,0.0001549,2]
[405844954,1771356656250,-1000.0,0.00015495,2]
[405844955,1771356656260,-2000.0,0.000155,2]
[405844956,1771356656270,-500.0,0.00015516,2]
[405844957,1771356656283,-360.43974274,0.00015516,2]
[405844958,1771356656294,-1120.78233815,0.00015516,2]
[405844959,1771356656305,-2000.0,0.00015516,2]
[405844960,1771356656314,-2000.0,0.00015516,2]
[405844961,1771356656324,-2000.0,0.00015516,2]
[405844962,1771356656335,-2000.0,0.00015516,2]
[405844963,1771356656349,-2000.0,0.00015516,2]
[405844964,1771356656359,-2000.0,0.00015516,2]
[405844965,1771356656368,-1219.64567907,0.00015516,2]
[405844966,1771356656378,-1929.20363046,0.00015516,2]
[405844967,1771356656387,-5115.82431981,0.00015523,2]
[405844968,1771356656399,-1000.0,0.00015555,2]
[405844969,1771356656410,-1000.0,0.00015626,2]
[405844970,1771356656421,-382.0,0.00015642,2]
[405844971,1771356656431,-481.75678796,0.00015648,2]
[405844972,1771356656440,-1000.0,0.00015658,2]
[405844973,1771356656449,-215.37,0.00015679,2]
[405844974,1771356656459,-1000.0,0.00015701,2]
[405844975,1771356656468,-1000.0,0.00015746,2]
[405844976,1771356656477,-4479.21,0.00015753,2]
[405844977,1771356656487,-1000.0,0.0001577,2]
[405844978,1771356656496,-1338.0,0.00015793,2]
[405844979,1771356656506,-3551.659,0.00015793,2]
[405844980,1771356656516,-619.543,0.00015803,2]
[405844981,1771356656525,-2245.73805852,0.00015807,2]
[405844982,1771356656535,-1000.0,0.00015817,2]
[405844983,1771356656544,-686.0,0.00015835,2]
[405844984,1771356656554,-150.0,0.00015853,2]
[405844985,1771356656563,-1000.0,0.00015865,2]
[405844986,1771356656572,-686.0,0.00015868,2]
[405844987,1771356656581,-215.36125356,0.00015897,2]
[405844988,1771356656591,-3100.0,0.000159,5]
[405844989,1771356656600,-1000.0,0.00015942,2]
[405844990,1771356656610,-201.93286099,0.00015948,2]
[405844991,1771356656619,-171.52852621,0.00015948,2]
[405844992,1771356656628,-320.74051982,0.00015948,2]
[405844993,1771356656637,-5000.0,0.0001596,2]
[405844994,1771356656647,-1000.0,0.0001598,2]
[405844995,1771356656658,-150.0,0.00016,2]
[405844996,1771356656667,-150.0,0.00016,2]
[405844997,1771356656677,-2000.0,0.00016,2]
[405844998,1771356656687,-150.0,0.00016,2]
[405844999,1771356656696,-173.57638878,0.00016,3]
[405845000,1771356656706,-160.0,0.00016,3]
[405845001,1771356656716,-418.83903334,0.00016,2]
[405845002,1771356656727,-276.734435,0.00016,2]
[405845003,1771356656737,-158.13963895,0.00016,2]
[405845004,1771356656746,-1494.73225771,0.00016008,2]